[Event "94th Paris-ch  2019"]
[Site "Paris"]
[Date "2019.07.09"]
[Round "4.14"]
[White "Anand Nadar"]
[Black "Smith, Matthieu"]
[Result "1-0"]
[ECO "E11"]
[WhiteElo "2358"]
[BlackElo "2208"]
[Annotator "NA"]
[PlyCount "133"]
[EventDate "2019.07.07"]
[EventType "swiss"]
[EventCountry "FRA"]
[SourceTitle "playchess.com"]
[Source "ChessBase"]
[SourceDate "2019.07.09"]
[SourceQuality "1"]
[TimeControl "5400+30"]

1. d4 {[%emt 0:00:03]} Nf6 {[%emt 0:00:29]} 2. c4 {[%emt 0:00:10]} e6 {[%emt 0:00:29]} 3. g3 {[%emt 0:00:05]} Bb4+ {[%emt 0:00:33]} 4. Bd2 {[%emt 0:00:43]} Bxd2+ {[%emt 0:00:11]} 5. Qxd2 {[%emt 0:00:33]} d5 {[%emt 0:00:14]} 6. Bg2 {[%emt 0:00:46]} c6 {[%emt 0:13:57]} 7. Nf3 {[%emt 0:02:46]} Nbd7 {[%emt 0:00:35]} 8. Qc2 {[%emt 0:12:22]} O-O {[%emt 0:06:37]} 9. Nbd2 {[%emt 0:03:10]} b6 {[%emt 0:03:11]} 10. O-O {[%emt 0:09:31]} Bb7 {[%emt 0:01:30]} 11. Rad1 {[%emt 0:09:44]} Qb8 {[%emt 0:03:57]} 12. Rfe1 {[%emt 0:11:56]} h6 {[%emt 0:05:12]} 13. e4 {[%emt 0:07:12]} dxe4 {[%emt 0:03:40]} 14. Nxe4 {[%emt 0:00:16]} Nxe4 {[%emt 0:03:00]} 15. Qxe4 {[%emt 0:01:07]} c5 {[%emt 0:00:51]} 16. Qe3 {[%emt 0:00:21]} cxd4 {[%emt 0:02:26]} 17. Rxd4 {[%emt 0:00:58]} Nf6 {[%emt 0:02:40]} 18. Qe5 {[%emt 0:02:05]} Qxe5 {[%emt 0:02:15]} 19. Nxe5 {[%emt 0:01:26]} Bxg2 {[%emt 0:00:09]} 20. Kxg2 {[%emt 0:00:04]} Rfd8 {[%emt 0:02:47]} 21. Red1 {[%emt 0:01:36]} Rxd4 {[%emt 0:00:07]} 22. Rxd4 {[%emt 0:00:04]} Rc8 {[%emt 0:00:55]} 23. h4 {[%emt 0:05:09]} Kf8 {[%emt 0:16:38]} 24. g4 {[%emt 0:09:49]} Rc7 {[%emt 0:04:08]} 25. b4 {[%emt 0:03:48]} Ke8 {[%emt 0:06:14]} 26. b5 {[%emt 0:01:08]} Nd7 {[%emt 0:00:46]} 27. Nc6 {[%emt 0:00:08]} a5 {[%emt 0:00:49]} 28. Rd6 {[%emt 0:00:30]} g5 {[%emt 0:10:00]} 29. hxg5 {[%emt 0:05:07]} hxg5 {[%emt 0:00:02]} 30. Kf3 {[%emt 0:02:29]} Kf8 {[%emt 0:00:42]} 31. Ke3 {[%emt 0:00:32]} Kg7 {[%emt 0:01:57]} 32. Kd4 {[%emt 0:00:58]} Kf8 {[%emt 0:03:00]} 33. f3 {[%emt 0:01:24]} Ke8 {[%emt 0:01:50]} 34. Kc3 {[%emt 0:03:45]} Kf8 {[%emt 0:00:13]} 35. Rd1 {[%emt 0:00:41]} Kg7 {[%emt 0:00:40]} 36. Rd6 {[%emt 0:00:07]} Kf8 {[%emt 0:02:14]} 37. Kd2 {[%emt 0:00:21]} Kg7 {[%emt 0:00:13]} 38. Ke3 {[%emt 0:02:12]} Kf8 {[%emt 0:00:41]} 39. f4 {[%emt 0:00:11]} gxf4+ {[%emt 0:00:21]} 40. Kxf4 Kg7 {[%emt 0:00:29]} 41. g5 {[%emt 0:00:31]} Kh7 {[%emt 0:01:43]} 42. g6+ {[%emt 0:01:31]} Kg7 {[%emt 0:01:43]} 43. gxf7 {[%emt 0:00:20]} Kxf7 {[%emt 0:00:26]} 44. Kg5 {[%emt 0:00:06]} Nc5 {[%emt 0:00:39]} 45. Ne5+ {[%emt 0:00:17]} Ke7 {[%emt 0:01:00]} 46. Rxb6 {[%emt 0:00:01]} Nd7 {[%emt 0:00:25]} 47. Nc6+ {[%emt 0:00:49]} Kd6 {[%emt 0:00:32]} 48. Ra6 {[%emt 0:00:11]} Kc5 {[%emt 0:00:28]} 49. Nxa5 {[%emt 0:00:45]} Kb4 {[%emt 0:00:36]} 50. Kf4 {[%emt 0:02:45]} e5+ {[%emt 0:00:01]} 51. Ke3 {[%emt 0:00:09]} Nc5 {[%emt 0:00:19]} 52. Ra8 {[%emt 0:01:01]} Rh7 {[%emt 0:00:13]} 53. b6 {[%emt 0:00:38]} Rh3+ {[%emt 0:00:18]} 54. Ke2 {[%emt 0:00:16]} Rh2+ {[%emt 0:00:31]} 55. Kf3 {[%emt 0:00:20]} Rxa2 {[%emt 0:00:25]} 56. Nc6+ {[%emt 0:00:30]} Kb3 {[%emt 0:00:10]} 57. Rxa2 {[%emt 0:00:26]} Kxa2 {[%emt 0:00:05]} 58. Nxe5 {[%emt 0:00:40]} Kb3 {[%emt 0:00:54]} 59. Ke3 {[%emt 0:00:02]} Kc3 {[%emt 0:00:46]} 60. Nd3 {[%emt 0:00:41]} Nd7 {[%emt 0:01:33]} 61. b7 {[%emt 0:00:38]} Nb8 {[%emt 0:00:41]} 62. Ne5 {[%emt 0:00:01]} Kb4 {[%emt 0:00:14]} 63. Kd4 {[%emt 0:00:07]} Ka5 {[%emt 0:00:12]} 64. Kc5 {[%emt 0:01:33]} Na6+ {[%emt 0:01:10]} 65. Kc6 {[%emt 0:00:10]} Nb8+ {[%emt 0:00:14]} 66. Kc7 {[%emt 0:00:17]} Na6+ {[%emt 0:00:06]} 67. Kc8 {[%emt 0:00:09]} 1-0

[Event "94th Paris-ch  2019"]
[Site "Paris"]
[Date "2019.07.09"]
[Round "4.15"]
[White "Materia, Marco"]
[Black "Manoeuvre, Antoine"]
[Result "0-1"]
[ECO "E93"]
[WhiteElo "2243"]
[BlackElo "2325"]
[Annotator "NA"]
[PlyCount "85"]
[EventDate "2019.07.07"]
[EventType "swiss"]
[EventCountry "FRA"]
[SourceTitle "playchess.com"]
[Source "ChessBase"]
[SourceDate "2019.07.09"]
[SourceQuality "1"]
[TimeControl "5400+30"]

1. d4 {[%emt 0:08:41]} Nf6 {[%emt 0:09:30]} 2. c4 {[%emt 0:00:07]} g6 {[%emt 0:00:05]} 3. Nc3 {[%emt 0:00:11]} Bg7 {[%emt 0:00:12]} 4. e4 {[%emt 0:00:14]} d6 {[%emt 0:00:07]} 5. Nf3 {[%emt 0:00:16]} O-O {[%emt 0:00:08]} 6. Be2 {[%emt 0:00:05]} Nbd7 {[%emt 0:01:57]} 7. Be3 {[%emt 0:04:55]} e5 {[%emt 0:00:38]} 8. d5 {[%emt 0:00:55]} Ng4 {[%emt 0:04:42]} 9. Bg5 {[%emt 0:01:10]} f6 {[%emt 0:02:36]} 10. Bh4 {[%emt 0:02:02]} h5 {[%emt 0:04:05]} 11. Nd2 {[%emt 0:03:57]} Nb8 {[%emt 0:09:29]} 12. h3 {[%emt 0:07:19]} Nh6 {[%emt 0:00:46]} 13. f3 {[%emt 0:04:17]} c5 {[%emt 0:08:26]} 14. dxc6 {[%emt 0:08:09]} Nxc6 {[%emt 0:01:09]} 15. Nb3 {[%emt 0:04:28]} Be6 {[%emt 0:15:00]} 16. Qd2 {[%emt 0:06:33]} Rf7 {[%emt 0:04:28]} 17. O-O-O {[%emt 0:10:00]} Rd7 {[%emt 0:01:04]} 18. Kb1 {[%emt 0:01:18]} Nf7 {[%emt 0:05:48]} 19. Nd5 {[%emt 0:03:19]} Ng5 {[%emt 0:06:02]} 20. g4 {[%emt 0:07:56]} hxg4 {[%emt 0:05:18]} 21. hxg4 {[%emt 0:01:51]} Bf7 {[%emt 0:00:38]} 22. Qe3 {[%emt 0:02:04]} Ne6 {[%emt 0:03:21]} 23. Bf2 {[%emt 0:06:14]} b6 {[%emt 0:00:59]} 24. Bg3 {[%emt 0:04:46]} g5 {[%emt 0:01:57]} 25. Bf2 {[%emt 0:02:38]} Rc8 {[%emt 0:01:05]} 26. Qd2 {[%emt 0:01:00]} Bg6 {[%emt 0:02:00]} 27. Ne3 {[%emt 0:02:02]} Nf4 {[%emt 0:05:13]} 28. Bg3 {[%emt 0:02:04]} Nxe2 {[%emt 0:01:28]} 29. Qxe2 {[%emt 0:00:50]} Ne7 30. Nd5 {[%emt 0:00:33]} Nxd5 {[%emt 0:00:49]} 31. cxd5 {[%emt 0:00:31]} Rdc7 {[%emt 0:00:05]} 32. Be1 {[%emt 0:01:51]} Rc4 {[%emt 0:01:18]} 33. Bc3 {[%emt 0:00:41]} Qd7 {[%emt 0:00:32]} 34. Nd2 {[%emt 0:00:33]} R4c5 {[%emt 0:00:10]} 35. Rc1 {[%emt 0:01:21]} Rxd5 {[%emt 0:01:58]} 36. Bb4 {[%emt 0:01:04]} Rd4 {[%emt 0:03:32]} 37. Bc3 {[%emt 0:00:24]} Rd5 {[%emt 0:00:29]} 38. Bb4 {[%emt 0:00:17]} Rd4 {[%emt 0:00:05]} 39. Bc3 {[%emt 0:00:36]} Rd5 {[%emt 0:01:46]} 40. Bb4 {[%emt 0:02:05]} Rd4 {[%emt 0:00:06]} 41. Bc3 {[%emt 0:00:01]} Ra4 {[%emt 0:00:01]} 42. b3 Ra3 {[%emt 0:00:01]} 43. b4 {[%emt 0:00:04]} 0-1

[Event "94th Paris-ch  2019"]
[Site "Paris"]
[Date "2019.07.09"]
[Round "4.16"]
[White "Lux, Hugo de Melo"]
[Black "O`Sullivan, Thomas"]
[Result "1/2-1/2"]
[ECO "B23"]
[WhiteElo "2231"]
[BlackElo "2291"]
[Annotator "NA"]
[PlyCount "85"]
[EventDate "2019.07.07"]
[EventType "swiss"]
[EventCountry "FRA"]
[SourceTitle "playchess.com"]
[Source "ChessBase"]
[SourceQuality "1"]
[TimeControl "5400+30"]

1. e4 {[%emt 0:13:35]} c5 {[%emt 0:13:22]} 2. Nc3 {[%emt 0:00:00]} a6 {[%emt 0:00:17]} 3. g3 {[%emt 0:00:00]} b5 {[%emt 0:00:32]} 4. Bg2 {[%emt 0:00:00]} Bb7 {[%emt 0:00:16]} 5. a4 {[%emt 0:00:00]} b4 {[%emt 0:00:28]} 6. Nd5 {[%emt 0:00:00]} e6 {[%emt 0:00:12]} 7. Ne3 {[%emt 0:00:00]} Nf6 {[%emt 0:00:20]} 8. d3 {[%emt 0:00:00]} d5 {[%emt 0:00:23]} 9. exd5 {[%emt 0:00:00]} Nxd5 {[%emt 0:00:09]} 10. Nc4 {[%emt 0:00:00]} Be7 {[%emt 0:00:54]} 11. Nf3 {[%emt 0:00:00]} Nc6 {[%emt 0:02:34]} 12. O-O {[%emt 0:00:00]} O-O {[%emt 0:03:16]} 13. a5 {[%emt 0:00:00]} Qc7 {[%emt 0:03:01]} 14. Re1 {[%emt 0:00:00]} Rad8 {[%emt 0:05:49]} 15. h4 {[%emt 0:06:16]} h6 {[%emt 0:16:58]} 16. Nfe5 {[%emt 0:12:57]} Nxe5 {[%emt 0:01:24]} 17. Nxe5 {[%emt 0:00:25]} Nf6 {[%emt 0:07:00]} 18. Nc4 {[%emt 0:06:59]} Bxg2 {[%emt 0:01:04]} 19. Kxg2 {[%emt 0:02:44]} Qb7+ {[%emt 0:01:46]} 20. Qf3 {[%emt 0:00:33]} Qxf3+ {[%emt 0:00:41]} 21. Kxf3 {[%emt 0:00:02]} b3 {[%emt 0:00:11]} 22. Ke2 {[%emt 0:25:50]} bxc2 {[%emt 0:01:01]} 23. Bd2 {[%emt 0:00:16]} Nd5 {[%emt 0:21:08]} 24. Rec1 {[%emt 0:01:04]} Nb4 {[%emt 0:05:02]} 25. Bxb4 cxb4 {[%emt 0:00:02]} 26. Rxc2 {[%emt 0:02:24]} Bf6 {[%emt 0:00:42]} 27. Ra4 {[%emt 0:02:24]} b3 {[%emt 0:02:04]} 28. Rd2 {[%emt 0:11:46]} Rd5 {[%emt 0:02:34]} 29. Rb4 {[%emt 0:10:04]} Rb5 {[%emt 0:00:52]} 30. Rxb5 {[%emt 0:00:05]} axb5 {[%emt 0:00:01]} 31. Nb6 {[%emt 0:00:08]} Bd4 {[%emt 0:00:15]} 32. Rd1 {[%emt 0:00:11]} Bxb2 {[%emt 0:06:15]} 33. Rb1 {[%emt 0:01:15]} Bc3 {[%emt 0:00:16]} 34. Rxb3 {[%emt 0:00:43]} Bxa5 {[%emt 0:00:02]} 35. Rxb5 {[%emt 0:00:08]} Bc3 {[%emt 0:01:11]} 36. Nd7 {[%emt 0:01:44]} Ra8 {[%emt 0:01:53]} 37. Rb8+ {[%emt 0:00:05]} Rxb8 {[%emt 0:00:07]} 38. Nxb8 {[%emt 0:00:01]} Kf8 {[%emt 0:00:25]} 39. Ke3 {[%emt 0:02:43]} Ke7 {[%emt 0:00:16]} 40. Nc6+ {[%emt 0:00:13]} Kd6 {[%emt 0:00:40]} 41. Nd4 {[%emt 0:00:01]} Kd5 {[%emt 0:01:49]} 42. Ne2 {[%emt 0:00:10]} Ba5 {[%emt 0:01:11] Ke4+ Ke5+} 43. d4 {[%emt 0:00:45]} 1/2-1/2

[Event "94th Paris-ch  2019"]
[Site "Paris"]
[Date "2019.07.09"]
[Round "4.18"]
[White "Hingouet, Matthieu"]
[Black "French, Max"]
[Result "1/2-1/2"]
[ECO "E56"]
[WhiteElo "2245"]
[BlackElo "2232"]
[Annotator "NA"]
[PlyCount "49"]
[EventDate "2019.07.07"]
[EventType "swiss"]
[EventCountry "FRA"]
[SourceTitle "playchess.com"]
[Source "ChessBase"]
[SourceQuality "1"]
[TimeControl "5400+30"]

1. d4 {[%emt 0:00:00]} Nf6 {[%emt 0:00:00]} 2. c4 {[%emt 0:00:00]} e6 {[%emt 0:00:00]} 3. Nc3 {[%emt 0:00:00]} Bb4 {[%emt 0:00:00]} 4. e3 {[%emt 0:00:00]} O-O {[%emt 0:00:00]} 5. Bd3 {[%emt 0:00:16]} d5 {[%emt 0:00:11]} 6. Nf3 {[%emt 0:00:24]} c5 {[%emt 0:00:08]} 7. O-O {[%emt 0:00:23]} dxc4 {[%emt 0:00:16]} 8. Bxc4 {[%emt 0:00:05]} Nc6 {[%emt 0:00:20]} 9. a3 {[%emt 0:09:33]} Ba5 {[%emt 0:00:54]} 10. Bd3 {[%emt 0:06:17]} Kh8 {[%emt 0:33:12]} 11. Ne2 {[%emt 0:10:47]} cxd4 {[%emt 0:02:09]} 12. exd4 {[%emt 0:02:00]} Bb6 {[%emt 0:02:23]} 13. Bc2 {[%emt 0:01:16]} h6 {[%emt 0:01:04]} 14. Be3 {[%emt 0:07:59]} Bc7 {[%emt 0:02:07]} 15. Bf4 {[%emt 0:09:36]} Bxf4 {[%emt 0:03:41]} 16. Nxf4 {[%emt 0:00:05]} Qd6 {[%emt 0:03:35]} 17. Qd2 {[%emt 0:03:40]} e5 {[%emt 0:06:28]} 18. dxe5 {[%emt 0:01:13]} Qxd2 {[%emt 0:00:08]} 19. Nxd2 {[%emt 0:00:03]} Nxe5 {[%emt 0:00:09]} 20. Rfe1 {[%emt 0:05:11]} Nc6 {[%emt 0:02:35]} 21. Nc4 {[%emt 0:03:41]} Nd4 {[%emt 0:01:44]} 22. Bd3 {[%emt 0:01:49]} Ne6 {[%emt 0:01:11]} 23. Nxe6 {[%emt 0:02:10]} Bxe6 {[%emt 0:00:07]} 24. Ne5 {[%emt 0:00:47]} Kg8 {[%emt 0:03:28]} 25. f3 {[%emt 0:03:52]} 1/2-1/2

[Event "94th Paris-ch  2019"]
[Site "Paris"]
[Date "2019.07.09"]
[Round "4.20"]
[White "Eden, James"]
[Black "Cotonnec, Melkior"]
[Result "0-1"]
[ECO "D02"]
[WhiteElo "2343"]
[BlackElo "2293"]
[Annotator "NA"]
[PlyCount "76"]
[EventDate "2019.07.07"]
[EventType "swiss"]
[EventCountry "FRA"]
[SourceTitle "playchess.com"]
[Source "ChessBase"]
[SourceDate "2019.07.09"]
[SourceQuality "1"]
[TimeControl "5400+30"]

1. d4 {[%emt 0:08:52]} d5 {[%emt 0:11:58]} 2. Bf4 {[%emt 0:00:26]} Nf6 {[%emt 0:01:12]} 3. e3 {[%emt 0:00:20]} c5 {[%emt 0:03:23]} 4. c3 {[%emt 0:03:09]} e6 {[%emt 0:02:13]} 5. Nf3 {[%emt 0:00:49]} Bd6 {[%emt 0:00:19]} 6. Bg3 {[%emt 0:01:49]} Qc7 {[%emt 0:00:44]} 7. Nbd2 {[%emt 0:02:44]} Nbd7 {[%emt 0:01:28]} 8. Bd3 {[%emt 0:07:22]} O-O {[%emt 0:04:11]} 9. Qc2 {[%emt 0:09:15]} h6 {[%emt 0:21:20]} 10. Bxd6 {[%emt 0:06:26]} Qxd6 {[%emt 0:01:17]} 11. O-O {[%emt 0:00:19]} e5 {[%emt 0:00:44]} 12. dxe5 {[%emt 0:12:14]} Nxe5 {[%emt 0:00:04]} 13. Nxe5 {[%emt 0:01:03]} Qxe5 {[%emt 0:00:02]} 14. c4 {[%emt 0:00:57]} b6 {[%emt 0:06:04]} 15. cxd5 {[%emt 0:24:13]} Nxd5 {[%emt 0:00:18]} 16. Nc4 {[%emt 0:00:13]} Qe7 {[%emt 0:02:06]} 17. Be4 {[%emt 0:10:29]} Bb7 {[%emt 0:04:41]} 18. a3 {[%emt 0:00:29]} Rad8 {[%emt 0:03:27]} 19. Rad1 {[%emt 0:01:05]} Nf6 {[%emt 0:05:42]} 20. Bxb7 {[%emt 0:00:30]} Qxb7 {[%emt 0:00:02]} 21. Rd3 {[%emt 0:02:37]} Qc7 {[%emt 0:00:51]} 22. Rfd1 {[%emt 0:01:03]} b5 {[%emt 0:06:00]} 23. Nd6 {[%emt 0:00:44]} Qc6 {[%emt 0:06:11]} 24. Nxb5 {[%emt 0:04:43]} Rxd3 {[%emt 0:00:53]} 25. Qxd3 {[%emt 0:00:07]} Rb8 {[%emt 0:00:07]} 26. Nd6 {[%emt 0:00:25]} Rxb2 {[%emt 0:00:34]} 27. Qc4 {[%emt 0:01:53]} Qc7 {[%emt 0:05:10]} 28. h3 {[%emt 0:00:24]} Rb8 {[%emt 0:04:56]} 29. e4 {[%emt 0:00:45]} Rd8 {[%emt 0:00:47]} 30. e5 {[%emt 0:00:49]} Ne8 {[%emt 0:00:03]} 31. Qd5 {[%emt 0:03:16]} c4 {[%emt 0:00:16]} 32. Rd4 {[%emt 0:00:28]} c3 {[%emt 0:02:35]} 33. Rc4 {[%emt 0:00:21]} Qe7 {[%emt 0:04:45]} 34. Nc8 {[%emt 0:01:20]} Qg5 {[%emt 0:00:08]} 35. Qc5 {[%emt 0:00:20]} Rd1+ {[%emt 0:01:07]} 36. Kh2 {[%emt 0:00:02]} c2 {[%emt 0:00:24]} 37. Ne7+ {[%emt 0:02:10]} Kh7 {[%emt 0:00:32]} 38. h4 {[%emt 0:03:17]} Qh5 {[%emt 0:04:11]} 0-1

[Event "94th Paris-ch  2019"]
[Site "Paris"]
[Date "2019.07.09"]
[Round "4.21"]
[White "Douriet Duany, Alexis"]
[Black "Jeet, Jain"]
[Result "1-0"]
[ECO "D05"]
[WhiteElo "2247"]
[BlackElo "2258"]
[Annotator "NA"]
[PlyCount "183"]
[EventDate "2019.07.07"]
[EventType "swiss"]
[EventCountry "FRA"]
[SourceTitle "playchess.com"]
[Source "ChessBase"]
[SourceDate "2019.07.09"]
[SourceQuality "1"]
[TimeControl "5400+30"]

1. d4 {[%emt 0:07:02]} c5 {[%emt 0:00:13]} 2. e3 {[%emt 0:01:15]} Nf6 {[%emt 0:00:54]} 3. Nf3 {[%emt 0:00:12]} e6 {[%emt 0:00:57]} 4. Nbd2 {[%emt 0:00:22]} d5 {[%emt 0:01:15]} 5. Bd3 {[%emt 0:00:28]} Nc6 {[%emt 0:00:57]} 6. c3 {[%emt 0:00:01]} Bd6 {[%emt 0:00:32]} 7. Qe2 {[%emt 0:09:17]} O-O {[%emt 0:00:58]} 8. O-O {[%emt 0:00:57]} b6 {[%emt 0:00:52]} 9. e4 {[%emt 0:02:10]} Be7 {[%emt 0:00:59]} 10. e5 {[%emt 0:03:18]} Nh5 {[%emt 0:00:53]} 11. g3 {[%emt 0:06:57]} g6 {[%emt 0:00:51]} 12. Rd1 {[%emt 0:15:16]} Ng7 {[%emt 0:01:29]} 13. Nf1 {[%emt 0:00:43]} Bb7 {[%emt 0:04:13]} 14. a3 {[%emt 0:04:30]} a5 {[%emt 0:03:07]} 15. h4 {[%emt 0:02:07]} f6 {[%emt 0:00:54]} 16. Bh6 {[%emt 0:11:48]} cxd4 {[%emt 0:05:44]} 17. Nxd4 {[%emt 0:15:18]} Nxd4 {[%emt 0:07:20]} 18. cxd4 {[%emt 0:00:09]} fxe5 {[%emt 0:00:12]} 19. Qxe5 {[%emt 0:00:37]} Bf6 {[%emt 0:01:08]} 20. Qe3 {[%emt 0:00:19]} Re8 {[%emt 0:01:46]} 21. Bxg7 {[%emt 0:01:10]} Bxg7 {[%emt 0:00:13]} 22. Bb5 {[%emt 0:00:21]} Re7 {[%emt 0:01:09]} 23. f4 {[%emt 0:00:48]} Qd6 {[%emt 0:05:02]} 24. Nh2 {[%emt 0:04:48]} Rc8 {[%emt 0:00:44]} 25. Nf3 {[%emt 0:01:34]} Rc2 {[%emt 0:02:00]} 26. Rd2 {[%emt 0:00:08]} Rec7 {[%emt 0:00:23]} 27. Re1 {[%emt 0:00:28]} Bc8 {[%emt 0:00:28]} 28. Bd3 {[%emt 0:00:36]} Rxd2 {[%emt 0:03:16]} 29. Qxd2 {[%emt 0:00:07]} Bf6 {[%emt 0:00:08]} 30. Kg2 {[%emt 0:00:28]} Bd7 {[%emt 0:01:11]} 31. Qe2 {[%emt 0:00:32]} Qc6 {[%emt 0:00:46]} 32. h5 {[%emt 0:01:46]} Kg7 {[%emt 0:01:45]} 33. hxg6 {[%emt 0:00:14]} hxg6 {[%emt 0:00:47]} 34. Ne5 {[%emt 0:00:01]} Qa4 {[%emt 0:01:15]} 35. Qg4 {[%emt 0:00:45]} Kf8 {[%emt 0:02:25]} 36. Qxg6 {[%emt 0:03:34]} Bxe5 {[%emt 0:00:10]} 37. fxe5 {[%emt 0:00:16]} Be8 {[%emt 0:00:14]} 38. Rf1+ {[%emt 0:02:10]} Rf7 {[%emt 0:00:15]} 39. Qxe6 {[%emt 0:01:26]} Rxf1 {[%emt 0:00:23]} 40. Qh6+ {[%emt 0:01:10]} Kg8 {[%emt 0:01:35]} 41. Bh7+ {[%emt 0:00:33]} Kf7 {[%emt 0:00:07]} 42. Qh5+ {[%emt 0:04:06]} Kg7 {[%emt 0:01:05]} 43. Qg4+ {[%emt 0:00:34]} Kxh7 {[%emt 0:00:12]} 44. Kxf1 {[%emt 0:00:09]} Qc4+ {[%emt 0:01:23]} 45. Kg2 {[%emt 0:00:37]} Qc2+ {[%emt 0:00:08]} 46. Kg1 {[%emt 0:00:33]} Qc1+ {[%emt 0:04:27]} 47. Kg2 {[%emt 0:00:11]} Qd2+ {[%emt 0:00:19]} 48. Kg1 {[%emt 0:00:23]} Qe1+ {[%emt 0:00:19]} 49. Kh2 {[%emt 0:00:11]} Qf2+ {[%emt 0:00:28]} 50. Kh3 {[%emt 0:00:06]} Bg6 {[%emt 0:00:28]} 51. Qd7+ {[%emt 0:02:31]} Qf7 {[%emt 0:00:25]} 52. Qd8 {[%emt 0:00:34]} Qf1+ {[%emt 0:00:45]} 53. Kh4 {[%emt 0:00:26]} Qf3 {[%emt 0:29:03]} 54. Qe7+ {[%emt 0:01:06]} Kh6 {[%emt 0:04:26]} 55. Qg5+ {[%emt 0:00:12]} Kg7 {[%emt 0:00:04]} 56. Qe7+ {[%emt 0:00:27]} Qf7 {[%emt 0:01:10]} 57. Qd6 {[%emt 0:00:24]} Qf5 {[%emt 0:01:45]} 58. Qe7+ {[%emt 0:00:50]} Kh6 {[%emt 0:01:18]} 59. g4 {[%emt 0:00:25]} Qf2+ {[%emt 0:00:03]} 60. Kh3 {[%emt 0:00:24]} Be4 {[%emt 0:02:49]} 61. Qd6+ {[%emt 0:00:31]} Kg5 {[%emt 0:00:23]} 62. Qe7+ {[%emt 0:00:14]} Kg6 {[%emt 0:03:49]} 63. Qd6+ {[%emt 0:00:10]} Kg7 {[%emt 0:00:54]} 64. Qc7+ {[%emt 0:00:22]} Qf7 {[%emt 0:01:46]} 65. Qxb6 {[%emt 0:00:22]} Qf3+ {[%emt 0:02:35]} 66. Kh4 {[%emt 0:00:14]} Bg6 {[%emt 0:00:32]} 67. Qc7+ {[%emt 0:00:30]} Bf7 {[%emt 0:00:02]} 68. Qa7 {[%emt 0:01:45]} Kg6 {[%emt 0:01:50]} 69. Qb6+ {[%emt 0:00:20]} Kh7 {[%emt 0:00:01]} 70. Qc7 {[%emt 0:00:19]} Kg7 {[%emt 0:00:34]} 71. Qb6 {[%emt 0:00:44]} a4 {[%emt 0:00:15]} 72. Qa7 {[%emt 0:00:39]} Qf4 {[%emt 0:00:26]} 73. Kh3 {[%emt 0:00:28]} Qe3+ {[%emt 0:00:39]} 74. Kh4 {[%emt 0:00:10]} Qg1 {[%emt 0:00:19]} 75. Kh3 {[%emt 0:00:19]} Qf1+ {[%emt 0:00:17]} 76. Kg3 {[%emt 0:00:11]} Qe1+ {[%emt 0:00:59]} 77. Kh3 {[%emt 0:00:13]} Qe3+ {[%emt 0:00:15]} 78. Kh4 {[%emt 0:00:13]} Qf3 {[%emt 0:00:36]} 79. Qe7 {[%emt 0:01:54]} Qf4 {[%emt 0:01:00]} 80. Kh3 {[%emt 0:00:17]} Qh6+ {[%emt 0:01:10]} 81. Kg3 {[%emt 0:00:14]} Qe6 {[%emt 0:00:43]} 82. Qa7 {[%emt 0:00:26]} Qc6 {[%emt 0:00:18]} 83. Qe7 {[%emt 0:00:22]} Qb6 {[%emt 0:00:23]} 84. Kh4 {[%emt 0:01:01]} Qh6+ {[%emt 0:01:01]} 85. Kg3 {[%emt 0:00:09]} Qe3+ {[%emt 0:00:17]} 86. Kh4 {[%emt 0:00:36]} Qe4 {[%emt 0:01:03]} 87. Qf6+ {[%emt 0:00:10]} Kg8 {[%emt 0:00:07]} 88. Qd8+ {[%emt 0:00:39]} Kh7 {[%emt 0:00:03]} 89. Qe7 {[%emt 0:00:14]} Qg6 {[%emt 0:00:05]} 90. Qa7 {[%emt 0:00:34]} Kh6 {[%emt 0:00:11]} 91. Qe7 {[%emt 0:00:19]} Be6 {[%emt 0:00:44]} 92. g5+ {[%emt 0:00:10]} 1-0

[Event "94th Paris-ch  2019"]
[Site "Paris"]
[Date "2019.07.10"]
[Round "5.1"]
[White "Flom, Gabriel"]
[Black "Moussard, Jules"]
[Result "0-1"]
[ECO "A88"]
[WhiteElo "2494"]
[BlackElo "2576"]
[Annotator "RC"]
[PlyCount "57"]
[EventDate "2019.07.07"]
[EventType "swiss"]
[EventCountry "FRA"]
[SourceTitle "playchess.com"]
[Source "ChessBase"]
[SourceQuality "1"]
[TimeControl "5400+30"]

1. d4 f5 2. c4 Nf6 3. Nc3 d6 4. Nf3 g6 5. g3 Bg7 6. Bg2 O-O 7. O-O c6 8. d5 e5 9. dxe6 Bxe6 10. b3 Na6 11. Ng5 Bc8 12. Bb2 Qe7 13. Qc2 h6 14. Nf3 Be6 15. Rad1 Rad8 16. Nh4 Bf7 17. e3 Nc5 18. Bh3 Nfe4 19. Ne2 Bxb2 20. Qxb2 Qf6 21. Qa3 a5 22. Nd4 a4 23. Bg2 Rfe8 24. Rfe1 Nc3 25. Rd2 axb3 26. axb3 Ra8 27. Qb2 N5e4 28. Bxe4 Nxe4 29. Rc2 0-1

[Event "94th Paris-ch  2019"]
[Site "Paris"]
[Date "2019.07.10"]
[Round "5.4"]
[White "Abergel, Thal"]
[Black "Shchekachev, Andrei"]
[Result "1/2-1/2"]
[ECO "A48"]
[WhiteElo "2450"]
[BlackElo "2531"]
[Annotator "ChessBase"]
[PlyCount "30"]
[EventDate "2019.07.07"]
[EventType "swiss"]
[EventCountry "FRA"]
[SourceTitle "playchess.com"]
[Source "ChessBase"]
[SourceQuality "1"]
[TimeControl "5400+30"]

1. Nf3 g6 2. d4 Nf6 3. Nbd2 Bg7 4. e4 O-O 5. e5 Ne8 6. Ne4 d6 7. Be2 Nc6 8. exd6 Nxd6 9. Ng3 e5 10. dxe5 Nxe5 11. O-O Re8 12. c3 Nxf3+ 13. Bxf3 Qh4 14. Be3 Be6 15. Qc1 Qc4 1/2-1/2

[Event "94th Paris-ch  2019"]
[Site "Paris"]
[Date "2019.07.10"]
[Round "5.9"]
[White "Moksh Amit Doshi"]
[Black "Anand Nadar"]
[Result "1/2-1/2"]
[ECO "A53"]
[WhiteElo "2229"]
[BlackElo "2358"]
[Annotator "NA"]
[PlyCount "30"]
[EventDate "2019.07.07"]
[EventType "swiss"]
[EventCountry "FRA"]
[SourceTitle "playchess.com"]
[Source "ChessBase"]
[SourceQuality "1"]
[TimeControl "5400+30"]

1. d4 d6 2. c4 e5 3. Nc3 exd4 4. Qxd4 Nc6 5. Qd2 Nf6 6. e4 g6 7. b3 Bg7 8. Bb2 O-O 9. Bd3 Re8 10. Nge2 a6 11. O-O Nb4 12. Bb1 Rb8 13. Nd4 Bd7 14. Re1 b5 15. Nd5 Nc6 1/2-1/2

[Event "94th Paris-ch  2019"]
[Site "Paris"]
[Date "2019.07.10"]
[Round "5.17"]
[White "Le Quang, Kim"]
[Black "Le Goff, Ronan"]
[Result "0-1"]
[ECO "A14"]
[WhiteElo "2243"]
[BlackElo "2281"]
[Annotator "RC"]
[PlyCount "72"]
[EventDate "2019.07.07"]
[EventType "swiss"]
[EventCountry "FRA"]
[SourceTitle "playchess.com"]
[Source "ChessBase"]
[SourceQuality "1"]
[TimeControl "5400+30"]

1. c4 e6 2. g3 d5 3. Bg2 Nf6 4. Nf3 Be7 5. O-O O-O 6. b3 d4 7. e3 c5 8. exd4 cxd4 9. Ba3 Nc6 10. Bxe7 Qxe7 11. Re1 e5 12. d3 Bf5 13. a3 a5 14. Ra2 Rfe8 15. Rae2 Qd6 16. Nh4 Bg4 17. Bf3 Bxf3 18. Nxf3 Nd7 19. Nfd2 Qg6 20. Qc2 Nc5 21. Ne4 Ne6 22. Kh1 f5 23. Nd6 Red8 24. Nb5 Rac8 25. f3 Nc5 26. Nd2 Rf8 27. Rg2 Rf7 28. Qb1 Rcf8 29. b4 axb4 30. axb4 Na6 31. c5 Naxb4 32. Nd6 Re7 33. N2c4 Nd5 34. Rb2 Qh5 35. Kg2 Re6 36. Rxb7 Nf4+ 0-1